[Event "German-ch Women 2024"]
[Site "Ostfildern"]
[Date "2024.08.23"]
[Round "7.7"]
[White "Koeberl, Christiane"]
[Black "Wagenschuetz, Evelyn"]
[Result "0-1"]
[ECO "A46"]
[WhiteElo "1745"]
[BlackElo "2070"]
[Annotator "NA RC"]
[PlyCount "64"]
[EventDate "2024.08.16"]
[EventType "tourn"]
[EventCountry "GER"]
[SourceTitle "playchess.com"]
[Source "ChessBase"]
[SourceQuality "1"]
[TimeControl "40/5400+30:1800+30"]

1. d4 {[%emt 0:00:03]} Nf6 {[%emt 0:00:22]} 2. Nf3 {[%emt 0:00:11]} e6 {[%emt 0:00:07]} 3. Bg5 {[%emt 0:00:14]} h6 {[%emt 0:00:13]} 4. Bh4 {[%emt 0:00:08]} d6 {[%emt 0:00:17]} 5. e3 {[%emt 0:00:20]} g5 {[%emt 0:00:52]} 6. Bg3 {[%emt 0:00:12]} Nh5 {[%emt 0:00:56]} 7. c4 {[%emt 0:00:41]} Bg7 {[%emt 0:01:37]} 8. Nc3 {[%emt 0:01:07]} Nc6 {[%emt 0:04:10]} 9. Nd2 {[%emt 0:01:58]} Nxg3 {[%emt 0:00:41]} 10. hxg3 {[%emt 0:00:14]} Bd7 {[%emt 0:03:20]} 11. a3 {[%emt 0:00:49]} Qe7 {[%emt 0:04:11]} 12. Qc2 {[%emt 0:05:58]} a6 {[%emt 0:01:10]} 13. Be2 {[%emt 0:01:08]} O-O {[%emt 0:06:14]} 14. f4 {[%emt 0:05:04]} f5 {[%emt 0:11:02]} 15. Nb3 {[%emt 0:05:26]} a5 {[%emt 0:11:54]} 16. d5 {[%emt 0:01:38]} a4 {[%emt 0:02:19]} 17. Nd2 {[%emt 0:08:41]} Nd8 {[%emt 0:00:25]} 18. e4 {[%emt 0:00:33]} c6 {[%emt 0:02:09]} 19. O-O-O {[%emt 0:01:29]} cxd5 {[%emt 0:05:33]} 20. exf5 {[%emt 0:03:48]} d4 {[%emt 0:05:48]} 21. f6 Rxf6 {[%emt 0:04:11]} 22. Nce4 {[%emt 0:04:47]} Rf5 {[%emt 0:07:43]} 23. Bd3 {[%emt 0:04:29]} gxf4 {[%emt 0:02:57]} 24. Nf3 {[%emt 0:00:03]} b5 {[%emt 0:01:08]} 25. Kb1 {[%emt 0:01:10]} bxc4 {[%emt 0:00:27]} 26. Nxd6 {[%emt 0:02:29]} cxd3 {[%emt 0:00:34]} 27. Qxd3 {[%emt 0:02:09]} Qxd6 {[%emt 0:00:21]} 28. g4 {[%emt 0:00:59]} Bb5 {[%emt 0:01:31]} 29. Qd2 {[%emt 0:04:23]} Rd5 {[%emt 0:01:09]} 30. g5 {[%emt 0:00:34]} hxg5 {[%emt 0:01:24]} 31. Qf2 {[%emt 0:00:48]} Be8 {[%emt 0:01:12]} 32. Qc2 {[%emt 0:00:55]} d3 {[%emt 0:00:13]} 0-1

[Event "German-ch Women 2024"]
[Site "Ostfildern"]
[Date "2024.08.23"]
[Round "7.8"]
[White "Albayrak, Aylin"]
[Black "Wilmink, Anna"]
[Result "1/2-1/2"]
[ECO "A57"]
[WhiteElo "1741"]
[BlackElo "1905"]
[Annotator "NA RC"]
[PlyCount "94"]
[EventDate "2024.08.16"]
[EventType "tourn"]
[EventCountry "GER"]
[SourceTitle "playchess.com"]
[Source "ChessBase"]
[SourceQuality "1"]
[TimeControl "40/5400+30:1800+30"]

1. d4 {[%emt 0:00:02]} Nf6 {[%emt 0:00:05]} 2. c4 {[%emt 0:00:08]} c5 {[%emt 0:00:08]} 3. d5 {[%emt 0:00:08]} b5 {[%emt 0:00:06]} 4. cxb5 {[%emt 0:00:10]} a6 {[%emt 0:00:05]} 5. e3 {[%emt 1:32:32]} axb5 {[%emt 0:01:33]} 6. Bxb5 {[%emt 0:00:30]} Qa5+ {[%emt 1:31:33]} 7. Nc3 {[%emt 0:00:30]} Ne4 {[%emt 0:00:00]} 8. Nge2 {[%emt 0:00:00]} g6 9. O-O {[%emt 0:00:00]} Nd6 10. a4 {[%emt 0:00:00]} Ba6 {[%emt 0:00:00]} 11. Bxa6 Nxa6 {[%emt 0:00:00]} 12. Bd2 {[%emt 0:00:00]} Nc4 {[%emt 0:00:00]} 13. b3 {[%emt 0:00:00]} Nxd2 14. Qxd2 {[%emt 0:00:00]} d6 {[%emt 0:00:00]} 15. Qd3 {[%emt 0:00:00]} Rb8 {[%emt 0:00:00]} 16. Rab1 {[%emt 0:00:00]} Bg7 {[%emt 0:00:00]} 17. Rfc1 {[%emt 0:00:00]} O-O {[%emt 0:00:00]} 18. Qe4 {[%emt 0:00:00]} Rb7 {[%emt 0:00:00]} 19. Nb5 {[%emt 0:00:00]} Rfb8 {[%emt 0:00:00]} 20. h4 {[%emt 0:00:00]} Bf6 {[%emt 0:00:00]} 21. h5 {[%emt 0:00:00]} Nc7 {[%emt 0:00:00]} 22. Nec3 {[%emt 0:00:00]} Kf8 {[%emt 0:00:00]} 23. Nxc7 {[%emt 0:00:00]} Rb4 {[%emt 0:00:00]} 24. Ne6+ {[%emt 0:00:00]} fxe6 {[%emt 0:00:00]} 25. Qxe6 {[%emt 0:00:00]} Rxb3 {[%emt 0:00:00]} 26. Rxb3 {[%emt 0:00:00]} Rxb3 {[%emt 0:00:00]} 27. Ne4 {[%emt 0:00:00]} Qd8 {[%emt 0:00:12]} 28. Nxf6 {[%emt 0:00:00]} exf6 {[%emt 0:00:13]} 29. hxg6 {[%emt 0:00:00]} hxg6 {[%emt 0:00:44]} 30. Ra1 {[%emt 0:00:00]} Rb6 {[%emt 0:04:30]} 31. Qe4 {[%emt 0:00:00]} Kg7 {[%emt 0:01:07]} 32. Qg4 {[%emt 0:00:00]} Rb4 {[%emt 0:01:21]} 33. f4 {[%emt 0:00:00]} Qe8 {[%emt 0:01:36]} 34. Qe6 {[%emt 0:00:00]} Qxe6 {[%emt 0:00:15]} 35. dxe6 {[%emt 0:00:00]} f5 {[%emt 0:01:21]} 36. a5 {[%emt 0:00:00]} Rb7 {[%emt 0:00:19]} 37. a6 {[%emt 0:00:00]} Ra7 {[%emt 0:00:05]} 38. Kf2 {[%emt 0:00:00]} Kf6 {[%emt 0:00:18]} 39. Kf3 {[%emt 0:00:00]} Kxe6 {[%emt 0:00:41]} 40. e4 {[%emt 0:00:00]} fxe4+ {[%emt 0:01:54]} 41. Kxe4 {[%emt 0:26:08]} d5+ {[%emt 0:06:01]} 42. Kd3 {[%emt 0:00:00]} Kf5 {[%emt 0:10:09]} 43. Ke3 {[%emt 0:00:00]} Kg4 {[%emt 0:02:18]} 44. Ra5 {[%emt 0:00:00]} Kg3 {[%emt 0:01:45]} 45. Ra2 {[%emt 0:00:00]} Re7+ {[%emt 0:01:04]} 46. Kd3 {[%emt 0:00:00]} Ra7 {[%emt 0:00:04]} 47. Ke3 {[%emt 0:00:00]} Re7+ {[%emt 0:00:10]} 1/2-1/2

[Event "German-ch Women 2024"]
[Site "Ostfildern"]
[Date "2024.08.23"]
[Round "7.9"]
[White "Noll, Sonja"]
[Black "Wartenberg, Alissa"]
[Result "0-1"]
[ECO "C52"]
[WhiteElo "1810"]
[BlackElo "1858"]
[Annotator "NA RC"]
[PlyCount "68"]
[EventDate "2024.08.16"]
[EventType "tourn"]
[EventCountry "GER"]
[SourceTitle "playchess.com"]
[Source "ChessBase"]
[SourceQuality "1"]
[TimeControl "40/5400+30:1800+30"]

1. e4 {[%emt 0:00:03]} e5 {[%emt 0:00:04]} 2. Nf3 {[%emt 0:00:04]} Nc6 {[%emt 0:00:07]} 3. Bc4 {[%emt 0:00:05]} Bc5 {[%emt 0:00:08]} 4. b4 {[%emt 0:00:04]} Bxb4 {[%emt 0:00:03]} 5. c3 {[%emt 0:00:03]} Ba5 {[%emt 0:00:05]} 6. d4 {[%emt 0:01:42]} d6 {[%emt 0:00:07]} 7. Qb3 {[%emt 0:00:54]} Qd7 {[%emt 0:00:29]} 8. Ng5 {[%emt 0:07:28]} Nh6 {[%emt 0:00:36]} 9. d5 {[%emt 0:03:09]} Ne7 {[%emt 0:01:32]} 10. Bb5 {[%emt 0:01:59]} c6 {[%emt 0:00:18]} 11. dxc6 {[%emt 0:02:33]} bxc6 {[%emt 0:00:15]} 12. Bc4 {[%emt 0:01:25]} O-O {[%emt 0:04:57]} 13. h3 {[%emt 0:01:00]} d5 {[%emt 0:22:38]} 14. Bd3 {[%emt 0:03:05]} f6 {[%emt 0:05:36]} 15. exd5 cxd5 {[%emt 0:04:57]} 16. Nxh7 {[%emt 0:10:36]} Rf7 {[%emt 0:02:21]} 17. O-O {[%emt 0:04:32]} Nhf5 {[%emt 0:16:59]} 18. Ba3 {[%emt 0:01:30]} e4 {[%emt 0:07:37]} 19. Bxe7 Nxe7 {[%emt 0:01:50]} 20. Bb5 {[%emt 0:19:01]} Qd8 {[%emt 0:00:56]} 21. Re1 {[%emt 0:04:34]} Bf5 {[%emt 0:10:25]} 22. Nxf6+ {[%emt 0:02:38]} Rxf6 {[%emt 0:00:31]} 23. Nd2 {[%emt 0:00:59]} Rb8 {[%emt 0:00:58]} 24. Nxe4 {[%emt 0:01:58]} Bxe4 {[%emt 0:00:30]} 25. Rxe4 {[%emt 0:00:16]} Rxb5 {[%emt 0:02:55]} 26. Qxb5 {[%emt 0:00:52]} dxe4 {[%emt 0:00:14]} 27. Qc4+ {[%emt 0:00:48]} Qd5 {[%emt 0:00:50]} 28. Qa4 {[%emt 0:00:13]} Nc6 {[%emt 0:03:31]} 29. Rd1 {[%emt 0:01:15]} Qc5 {[%emt 0:00:34]} 30. Rd2 {[%emt 0:03:32]} e3 {[%emt 0:00:31]} 31. Re2 {[%emt 0:00:11]} exf2+ {[%emt 0:00:40]} 32. Kf1 {[%emt 0:00:06]} Qxc3 {[%emt 0:02:12]} 33. Re8+ {[%emt 0:01:23]} Kf7 {[%emt 0:00:10]} 34. Qd1 {[%emt 0:01:24]} Qe1+ {[%emt 0:00:35]} 0-1

[Event "German-ch Women 2024"]
[Site "Ostfildern"]
[Date "2024.08.23"]
[Round "7.10"]
[White "Foltin, Alica"]
[Black "Sokyrko, Sofiia"]
[Result "1-0"]
[ECO "C41"]
[WhiteElo "1722"]
[BlackElo "1585"]
[Annotator "NA RC"]
[PlyCount "87"]
[EventDate "2024.08.16"]
[EventType "tourn"]
[EventCountry "GER"]
[SourceTitle "playchess.com"]
[Source "ChessBase"]
[SourceQuality "1"]
[TimeControl "40/5400+30:1800+30"]

1. e4 {[%emt 0:00:02]} e5 {[%emt 0:00:21]} 2. Nf3 {[%emt 0:00:03]} d6 {[%emt 0:02:07]} 3. d4 {[%emt 0:00:35]} Nd7 {[%emt 0:00:24]} 4. Bc4 {[%emt 0:00:50]} Be7 {[%emt 0:00:40]} 5. Be3 {[%emt 0:01:54]} h6 {[%emt 0:05:07]} 6. Nc3 {[%emt 0:00:42]} Ngf6 {[%emt 0:00:19]} 7. O-O {[%emt 0:02:06]} O-O {[%emt 0:00:18]} 8. dxe5 {[%emt 0:03:13]} dxe5 {[%emt 0:00:11]} 9. Qe2 {[%emt 0:01:59]} c6 {[%emt 0:00:26]} 10. a4 {[%emt 0:00:12]} a5 {[%emt 0:00:49]} 11. Rfd1 {[%emt 0:01:34]} Qc7 {[%emt 0:01:38]} 12. h3 {[%emt 0:01:00]} Re8 {[%emt 0:07:14]} 13. Kh2 {[%emt 0:17:08]} Nf8 {[%emt 0:03:37]} 14. Nd2 {[%emt 0:09:25]} Ne6 {[%emt 0:03:38]} 15. Nf1 {[%emt 0:00:53]} Nf4 {[%emt 0:02:18]} 16. Bxf4 {[%emt 0:00:30]} exf4 {[%emt 0:00:08]} 17. f3 {[%emt 0:02:50]} Nh5 {[%emt 0:00:57]} 18. Qf2 {[%emt 0:03:21]} Bf6 {[%emt 0:02:14]} 19. Rd3 {[%emt 0:02:30]} Ng3 {[%emt 0:01:04]} 20. Ne2 {[%emt 0:01:31]} Be6 21. Bxe6 {[%emt 0:01:01]} Rxe6 {[%emt 0:03:19]} 22. Nfxg3 {[%emt 0:00:34]} fxg3+ 23. Qxg3 {[%emt 0:00:56]} Be5 {[%emt 0:03:10]} 24. f4 {[%emt 0:00:21]} Rg6 {[%emt 0:00:06]} 25. Qf3 {[%emt 0:02:02]} Bf6 {[%emt 0:01:38]} 26. e5 {[%emt 0:01:08]} Be7 {[%emt 0:02:22]} 27. Rad1 {[%emt 0:00:49]} Rd8 {[%emt 0:00:39]} 28. g3 {[%emt 0:01:46]} Re6 {[%emt 0:01:14]} 29. Nd4 {[%emt 0:02:05]} Rg6 {[%emt 0:02:02]} 30. f5 {[%emt 0:00:10]} Rg5 {[%emt 0:06:56]} 31. h4 {[%emt 0:00:09]} c5 {[%emt 0:00:23]} 32. Nb5 {[%emt 0:00:54]} Rxd3 33. Rxd3 {[%emt 0:01:35]} Qxe5 {[%emt 0:01:03]} 34. hxg5 {[%emt 0:00:10]} Bxg5 {[%emt 0:01:38]} 35. Qxb7 {[%emt 0:01:11]} Qxf5 {[%emt 0:03:06]} 36. Rf3 {[%emt 0:02:33]} Qxc2+ {[%emt 0:00:23]} 37. Kh3 {[%emt 0:00:42]} Qc4 {[%emt 0:02:43]} 38. Qc8+ {[%emt 0:00:37]} Kh7 {[%emt 0:00:10]} 39. Qf5+ {[%emt 0:00:06]} Kg8 {[%emt 0:00:39]} 40. Nd6 {[%emt 0:00:33]} Qc1 {[%emt 0:01:56]} 41. Qxf7+ {[%emt 0:31:40]} Kh7 {[%emt 0:30:24]} 42. Qf5+ {[%emt 0:04:32]} Kg8 {[%emt 0:00:20]} 43. Qd5+ {[%emt 0:02:43]} Kh7 {[%emt 0:00:11]} 44. Rf8 {[%emt 0:00:43]} 1-0

[Event "German-ch Women 2024"]
[Site "Ostfildern"]
[Date "2024.08.24"]
[Round "8.1"]
[White "Staerk, Elisa"]
[Black "Kostak, Tetyana"]
[Result "0-1"]
[ECO "E30"]
[WhiteElo "2002"]
[BlackElo "2094"]
[Annotator "NA RC"]
[PlyCount "108"]
[EventDate "2024.08.16"]
[EventType "tourn"]
[EventCountry "GER"]
[SourceTitle "playchess.com"]
[Source "ChessBase"]
[SourceQuality "1"]
[TimeControl "40/5400+30:1800+30"]

1. d4 {[%emt 0:00:02]} Nf6 {[%emt 0:00:16]} 2. Nf3 {[%emt 0:00:05]} e6 {[%emt 0:00:29]} 3. c4 {[%emt 0:00:12]} Nc6 {[%emt 0:00:20]} 4. Nc3 {[%emt 0:00:32]} Bb4 {[%emt 0:00:20]} 5. Bg5 {[%emt 0:02:59]} h6 {[%emt 0:03:53]} 6. Bxf6 {[%emt 0:02:32]} Qxf6 {[%emt 0:00:14]} 7. e3 {[%emt 0:00:30]} Bxc3+ {[%emt 0:04:52]} 8. bxc3 {[%emt 0:00:08]} d6 {[%emt 0:00:08]} 9. Bd3 {[%emt 0:03:26]} O-O {[%emt 0:01:09]} 10. O-O {[%emt 0:00:34]} e5 {[%emt 0:03:54]} 11. Nd2 {[%emt 0:02:54]} Qe7 {[%emt 0:00:40]} 12. Qb3 {[%emt 0:02:14]} Na5 {[%emt 0:01:16]} 13. Qa3 {[%emt 0:08:16]} b6 {[%emt 0:02:44]} 14. Nb3 {[%emt 0:00:44]} Nb7 {[%emt 0:02:10]} 15. Rad1 {[%emt 0:09:31]} c5 {[%emt 0:04:31]} 16. Nd2 {[%emt 0:12:41]} f5 {[%emt 0:00:27]} 17. e4 {[%emt 0:01:50]} f4 {[%emt 0:01:06]} 18. f3 {[%emt 0:03:37]} Be6 {[%emt 0:02:09]} 19. Nb3 {[%emt 0:06:49]} Qf7 {[%emt 0:02:08]} 20. d5 {[%emt 0:04:05]} Bd7 {[%emt 0:00:30]} 21. Qa6 {[%emt 0:02:30]} Bc8 {[%emt 0:00:34]} 22. Qb5 {[%emt 0:01:15]} Nd8 {[%emt 0:01:42]} 23. Nd2 {[%emt 0:00:54]} Bd7 {[%emt 0:04:10]} 24. Qa6 {[%emt 0:01:50]} g5 {[%emt 0:01:14]} 25. Rb1 {[%emt 0:00:43]} Bc8 {[%emt 0:02:02]} 26. Qa3 {[%emt 0:00:43]} Rb8 {[%emt 0:00:34]} 27. Bc2 {[%emt 0:01:43]} Rb7 {[%emt 0:00:21]} 28. Ba4 {[%emt 0:00:59]} Qh5 {[%emt 0:00:59]} 29. Kh1 {[%emt 0:06:44]} Rg7 {[%emt 0:01:14]} 30. Bd1 {[%emt 0:01:10]} Qf7 {[%emt 0:01:08]} 31. Qb2 {[%emt 0:01:31]} h5 {[%emt 0:00:21]} 32. Kg1 {[%emt 0:04:16]} Qe7 {[%emt 0:01:02]} 33. Kf2 {[%emt 0:01:52]} g4 {[%emt 0:00:21]} 34. Ke2 {[%emt 0:04:03]} Qh4 {[%emt 0:00:49]} 35. Kd3 {[%emt 0:00:59]} Qxh2 {[%emt 0:00:28]} 36. Nb3 {[%emt 0:00:32]} Qg3 {[%emt 0:03:44]} 37. Qf2 {[%emt 0:03:04]} Qxf2 {[%emt 0:02:18]} 38. Rxf2 {[%emt 0:00:03]} g3 {[%emt 0:00:07]} 39. Rf1 {[%emt 0:00:45]} h4 {[%emt 0:00:07]} 40. Be2 {[%emt 0:00:39]} h3 {[%emt 0:00:13]} 41. Rg1 {[%emt 0:32:54]} hxg2 {[%emt 0:30:15]} 42. Rxg2 {[%emt 0:00:17]} Rh7 {[%emt 0:00:49]} 43. Rgg1 {[%emt 0:01:15]} Bd7 {[%emt 0:00:20]} 44. Nd2 {[%emt 0:00:47]} Rf6 {[%emt 0:00:31]} 45. Bf1 {[%emt 0:00:47]} Nf7 {[%emt 0:01:25]} 46. Bg2 {[%emt 0:01:11]} Rfh6 {[%emt 0:00:33]} 47. a4 {[%emt 0:00:53]} Kf8 {[%emt 0:06:07]} 48. a5 {[%emt 0:00:22]} bxa5 {[%emt 0:00:07]} 49. Rb7 {[%emt 0:00:31]} Ke8 {[%emt 0:00:32]} 50. Rxa7 {[%emt 0:00:52]} a4 {[%emt 0:00:12]} 51. Rb1 {[%emt 0:00:21]} Nd8 {[%emt 0:03:49]} 52. Ke2 {[%emt 0:02:25]} Rh2 {[%emt 0:00:49]} 53. Rg1 {[%emt 0:00:32]} Rxg2+ {[%emt 0:02:15]} 54. Rxg2 {[%emt 0:00:07]} Rh2 {[%emt 0:00:06]} 0-1

[Event "German-ch Women 2024"]
[Site "Ostfildern"]
[Date "2024.08.24"]
[Round "8.2"]
[White "Braun, Kristin"]
[Black "Just, Anita"]
[Result "0-1"]
[ECO "C10"]
[WhiteElo "2001"]
[BlackElo "1871"]
[Annotator "NA RC"]
[PlyCount "68"]
[EventDate "2024.08.16"]
[EventType "tourn"]
[EventCountry "GER"]
[SourceTitle "playchess.com"]
[Source "ChessBase"]
[SourceQuality "1"]
[TimeControl "40/5400+30:1800+30"]

1. e4 {[%emt 0:00:05]} e6 {[%emt 0:00:05]} 2. d4 {[%emt 0:00:06]} d5 {[%emt 0:00:04]} 3. Nc3 {[%emt 0:00:06]} dxe4 {[%emt 0:00:27]} 4. Nxe4 {[%emt 0:00:22]} Bd7 {[%emt 0:00:18]} 5. Nf3 {[%emt 0:00:25]} Bc6 {[%emt 0:00:06]} 6. Bd3 {[%emt 0:01:21]} Nd7 {[%emt 0:00:15]} 7. Bf4 {[%emt 0:05:29]} Ngf6 {[%emt 0:04:37]} 8. Ned2 {[%emt 0:03:38]} Be7 {[%emt 0:05:27]} 9. c3 {[%emt 0:01:51]} Nd5 {[%emt 0:03:58]} 10. Bg3 {[%emt 0:00:51]} Bf6 {[%emt 0:03:28]} 11. Qc2 {[%emt 0:03:46]} Qe7 {[%emt 0:08:21]} 12. Ne4 {[%emt 0:07:13]} O-O-O {[%emt 0:08:20]} 13. Nxf6 {[%emt 0:00:43]} N5xf6 {[%emt 0:01:34]} 14. Qe2 {[%emt 0:10:23]} Rhe8 {[%emt 0:04:31]} 15. O-O {[%emt 0:04:02]} Nh5 {[%emt 0:07:22]} 16. Ne5 {[%emt 0:08:28]} Nxg3 {[%emt 0:03:23]} 17. fxg3 {[%emt 0:00:08]} Nxe5 {[%emt 0:01:06]} 18. Qxe5 {[%emt 0:00:47]} f6 {[%emt 0:05:06]} 19. Qa5 {[%emt 0:00:28]} Kb8 {[%emt 0:00:29]} 20. Bxh7 {[%emt 0:04:36]} f5 {[%emt 0:01:57]} 21. Bg6 {[%emt 0:00:27]} Rh8 {[%emt 0:00:14]} 22. Qe5 {[%emt 0:04:39]} Rd5 {[%emt 0:04:58]} 23. Qe2 {[%emt 0:00:35]} Qf6 {[%emt 0:14:08]} 24. Bh5 {[%emt 0:03:04]} Qh6 {[%emt 0:00:30]} 25. Bf3 {[%emt 0:03:17]} Qxh2+ {[%emt 0:00:37]} 26. Kf2 {[%emt 0:00:00]} f4 {[%emt 0:01:35]} 27. gxf4 {[%emt 0:00:48]} Qxf4 {[%emt 0:01:18]} 28. Ke1 {[%emt 0:04:39]} Rf5 {[%emt 0:01:40]} 29. a4 {[%emt 0:10:49]} Bxf3 {[%emt 0:02:08]} 30. gxf3 {[%emt 0:05:10]} Rh2 {[%emt 0:00:44]} 31. Qd3 {[%emt 0:00:12]} Qg3+ {[%emt 0:01:14]} 32. Kd1 {[%emt 0:00:19]} Qg2 {[%emt 0:04:03]} 33. Rb1 {[%emt 0:02:04]} Rxf3 {[%emt 0:02:35]} 34. Qxf3 {[%emt 0:00:57]} Qd2# {[%emt 0:00:03]} 0-1

[Event "German-ch Women 2024"]
[Site "Ostfildern"]
[Date "2024.08.24"]
[Round "8.3"]
[White "Wagenschuetz, Evelyn"]
[Black "Miljkovic, Jovana"]
[Result "0-1"]
[ECO "B51"]
[WhiteElo "2070"]
[BlackElo "2021"]
[Annotator "NA"]
[PlyCount "122"]
[EventDate "2024.08.16"]
[EventType "tourn"]
[EventCountry "GER"]
[SourceTitle "playchess.com"]
[Source "ChessBase"]
[SourceQuality "1"]
[TimeControl "40/5400+30:1800+30"]

1. e4 {[%emt 0:00:03]} c5 {[%emt 0:00:04]} 2. Nf3 {[%emt 0:00:08]} d6 {[%emt 0:00:03]} 3. Bb5+ {[%emt 0:00:09]} Nd7 {[%emt 0:00:08]} 4. a4 {[%emt 0:00:06]} Ngf6 {[%emt 0:01:07]} 5. Nc3 {[%emt 0:00:17]} g6 {[%emt 0:00:48]} 6. a5 {[%emt 0:00:53]} Bg7 {[%emt 0:03:12]} 7. O-O {[%emt 0:00:26]} O-O {[%emt 0:00:31]} 8. Re1 {[%emt 0:00:14]} Ne8 {[%emt 0:11:02]} 9. d4 {[%emt 0:04:08]} cxd4 {[%emt 0:03:40]} 10. Nxd4 {[%emt 0:00:09]} Nc7 {[%emt 0:00:32]} 11. Bf1 {[%emt 0:18:16]} Ne5 {[%emt 0:05:09]} 12. Be3 {[%emt 0:10:19]} Ng4 {[%emt 0:04:50]} 13. Bg5 {[%emt 0:01:06]} Be5 {[%emt 0:11:19]} 14. g3 {[%emt 0:02:42]} h6 {[%emt 0:09:33]} 15. Bc1 {[%emt 0:02:21]} Bg7 {[%emt 0:04:03]} 16. h3 {[%emt 0:06:01]} Ne5 {[%emt 0:02:02]} 17. Be3 {[%emt 0:12:22]} Ne6 {[%emt 0:01:24]} 18. Kh1 {[%emt 0:26:49]} Bd7 {[%emt 0:04:32]} 19. f4 {[%emt 0:00:21]} Nc6 {[%emt 0:01:35]} 20. Nde2 {[%emt 0:01:41]} Nxa5 {[%emt 0:03:01]} 21. f5 {[%emt 0:00:21]} gxf5 {[%emt 0:01:10]} 22. Qd5 {[%emt 0:00:26]} Nc6 {[%emt 0:01:12]} 23. exf5 {[%emt 0:00:03]} Ne5 {[%emt 0:04:55]} 24. Bg2 {[%emt 0:00:14]} Bc6 {[%emt 0:01:14]} 25. Qb3 {[%emt 0:00:28]} Nc5 {[%emt 0:02:51]} 26. Qb4 {[%emt 0:00:38]} Bxg2+ {[%emt 0:01:30]} 27. Kxg2 {[%emt 0:00:00]} Qc8 {[%emt 0:01:51]} 28. Nd4 {[%emt 0:01:47]} Nc6 {[%emt 0:04:56]} 29. Nxc6 {[%emt 0:00:18]} Qxc6+ {[%emt 0:00:07]} 30. Kh2 {[%emt 0:00:24]} Nd7 {[%emt 0:05:05]} 31. Qh4 {[%emt 0:01:04]} Ne5 {[%emt 0:00:36]} 32. Rf1 {[%emt 0:01:13]} Nf3+ {[%emt 0:00:43]} 33. Rxf3 {[%emt 0:00:02]} Qxf3 {[%emt 0:00:05]} 34. Bxh6 {[%emt 0:00:12]} Qxf5 {[%emt 0:05:25]} 35. Ra4 {[%emt 0:04:45]} f6 {[%emt 0:01:31]} 36. Re4 {[%emt 0:05:54]} Rf7 {[%emt 0:01:21]} 37. Be3 {[%emt 0:02:04]} d5 {[%emt 0:01:06]} 38. g4 {[%emt 0:00:12]} Qh7 {[%emt 0:02:18]} 39. Qxh7+ {[%emt 0:00:07]} Kxh7 {[%emt 0:00:01]} 40. Nxd5 {[%emt 0:00:02]} e5 {[%emt 0:00:37]} 41. Ra4 {[%emt 0:31:09]} Rc8 {[%emt 0:31:34]} 42. c4 {[%emt 0:00:00]} a6 {[%emt 0:00:00]} 43. b3 {[%emt 0:00:00]} Bf8 {[%emt 0:00:00]} 44. Ra1 {[%emt 0:00:00]} Bc5 {[%emt 0:00:00]} 45. Bd2 {[%emt 0:00:00]} Bd4 {[%emt 0:00:00]} 46. Rf1 {[%emt 0:00:00]} Kg7 {[%emt 0:00:00]} 47. Bb4 {[%emt 0:00:00]} b5 {[%emt 0:00:00]} 48. Ne7 {[%emt 0:00:00]} Rc7 {[%emt 0:00:00]} 49. Nf5+ {[%emt 0:00:00]} Kg6 {[%emt 0:00:00]} 50. Nd6 {[%emt 0:00:00]} Rfd7 {[%emt 0:00:00]} 51. cxb5 {[%emt 0:01:20]} axb5 {[%emt 0:00:00]} 52. Ne4 {[%emt 0:01:37]} Rc6 {[%emt 0:00:00]} 53. h4 {[%emt 0:00:20]} Be3 {[%emt 0:00:00]} 54. h5+ {[%emt 0:00:43]} Kg7 {[%emt 0:00:00]} 55. Ng3 {[%emt 0:02:03]} Bf4 {[%emt 0:00:00]} 56. Rf3 {[%emt 0:00:01]} Rc2+ {[%emt 0:00:00]} 57. Kh3 {[%emt 0:00:05]} Bxg3 {[%emt 0:00:00]} 58. Kxg3 {[%emt 0:00:06]} e4 {[%emt 0:00:00]} 59. Rf5 {[%emt 0:00:30]} Rd3+ {[%emt 0:00:00]} 60. Kf4 {[%emt 0:00:01]} Re2 {[%emt 0:00:00]} 61. h6+ {[%emt 0:01:52]} Kg6 {[%emt 0:00:23]} 0-1

[Event "German-ch Women 2024"]
[Site "Ostfildern"]
[Date "2024.08.24"]
[Round "8.4"]
[White "Bluebaum, Johanna"]
[Black "Walker, Julia"]
[Result "1-0"]
[ECO "D32"]
[WhiteElo "1994"]
[BlackElo "1836"]
[Annotator "NA"]
[PlyCount "77"]
[EventDate "2024.08.16"]
[EventType "tourn"]
[EventCountry "GER"]
[SourceTitle "playchess.com"]
[Source "ChessBase"]
[SourceQuality "1"]
[TimeControl "40/5400+30:1800+30"]

1. d4 {[%emt 0:00:01]} d5 {[%emt 0:00:06]} 2. c4 {[%emt 0:00:33]} e6 {[%emt 0:00:06]} 3. Nc3 {[%emt 0:00:06]} c5 {[%emt 0:00:04]} 4. cxd5 {[%emt 0:01:45]} cxd4 {[%emt 0:00:09]} 5. Qxd4 {[%emt 0:01:19]} Nc6 {[%emt 0:00:15]} 6. Qa4 {[%emt 0:10:04]} exd5 {[%emt 0:02:14]} 7. e3 {[%emt 0:02:26]} Nf6 {[%emt 0:06:32]} 8. Nf3 {[%emt 0:01:10]} Bd6 {[%emt 0:10:56]} 9. Bd3 {[%emt 0:04:22]} O-O {[%emt 0:01:08]} 10. O-O {[%emt 0:01:45]} a6 {[%emt 0:04:36]} 11. Qh4 {[%emt 0:07:46]} Ne5 {[%emt 0:09:55]} 12. Nxe5 {[%emt 0:03:06]} Bxe5 {[%emt 0:00:06]} 13. Rd1 {[%emt 0:01:54]} Be6 {[%emt 0:04:01]} 14. f4 {[%emt 0:11:31]} Bxc3 {[%emt 0:06:37]} 15. bxc3 {[%emt 0:00:05]} Ne4 {[%emt 0:06:12]} 16. Qh5 {[%emt 0:03:43]} Qf6 {[%emt 0:06:47]} 17. Bb2 {[%emt 0:05:26]} Rac8 {[%emt 0:12:31]} 18. Rab1 {[%emt 0:08:41]} Qf5 {[%emt 0:02:10]} 19. Qf3 {[%emt 0:04:26]} Qg4 {[%emt 0:06:41]} 20. c4 {[%emt 0:07:11]} Qxf3 {[%emt 0:07:45]} 21. gxf3 {[%emt 0:00:12]} dxc4 {[%emt 0:04:13]} 22. Bxe4 {[%emt 0:03:07]} c3 {[%emt 0:00:15]} 23. Ba3 {[%emt 0:04:21]} c2 {[%emt 0:00:43]} 24. Bxc2 {[%emt 0:02:20]} Rxc2 {[%emt 0:00:17]} 25. Bxf8 {[%emt 0:01:21]} Kxf8 {[%emt 0:00:25]} 26. Rxb7 {[%emt 0:00:49]} g6 {[%emt 0:00:29]} 27. a3 {[%emt 0:06:38]} Ra2 {[%emt 0:02:07]} 28. Rdb1 {[%emt 0:01:40]} Kg7 {[%emt 0:01:32]} 29. e4 {[%emt 0:01:13]} Rxa3 {[%emt 0:01:54]} 30. Kf2 {[%emt 0:00:05]} a5 {[%emt 0:01:52]} 31. R1b6 {[%emt 0:03:02]} Kf6 {[%emt 0:01:28]} 32. e5+ {[%emt 0:00:57]} Kg7 {[%emt 0:00:20]} 33. Rxe6 {[%emt 0:00:14]} Ra2+ {[%emt 0:01:20]} 34. Kg3 {[%emt 0:00:08]} h5 {[%emt 0:00:29]} 35. Rf6 {[%emt 0:00:27]} h4+ {[%emt 0:00:58]} 36. Kxh4 {[%emt 0:00:15]} Rxh2+ {[%emt 0:00:25]} 37. Kg3 {[%emt 0:00:06]} Rc2 {[%emt 0:00:41]} 38. Rfxf7+ {[%emt 0:00:13]} Kg8 {[%emt 0:00:08]} 39. Rfc7 {[%emt 0:00:23]} 1-0